bitfinex/quotes_BTCUSD_20240827
["timestamp","ask_amount","ask_price","bid_price","bid_amount"]
[1724766928702,1.43119815,62436.0,62435.0,0.04299638]
[1724766929955,1.43119815,62436.0,62435.0,0.14299638]
[1724766930413,1.43119815,62436.0,62435.0,0.19077027]
[1724766931073,1.43119815,62436.0,62435.0,0.19076755]
[1724766931281,1.43119815,62436.0,62435.0,0.09076755]
[1724766931699,1.43119815,62436.0,62435.0,0.07577117]
[1724766931922,1.43119815,62436.0,62435.0,0.09077991]
[1724766932429,1.43119815,62436.0,62435.0,0.04300874]
[1724766933093,1.25029815,62436.0,62435.0,0.04300874]
[1724766933314,1.25029815,62436.0,62435.0,0.09077991]
[1724766933315,0.85289815,62436.0,62435.0,0.09077991]
[1724766933950,1.23189815,62436.0,62435.0,0.09077991]
[1724766934370,1.23189815,62436.0,62435.0,0.04300874]
[1724766935683,1.23189815,62436.0,62435.0,0.04301434]
[1724766937863,0.85289815,62436.0,62435.0,0.04301434]
[1724766938120,0.85289815,62436.0,62435.0,0.41091696]
[1724766938334,0.85289815,62436.0,62435.0,0.83125125]
[1724766938549,0.61241815,62436.0,62435.0,2.40199284]
[1724766938758,0.61241815,62436.0,62435.0,2.40587794]
[1724766938973,0.61241815,62436.0,62435.0,2.33512648]
[1724766939423,0.43649615,62436.0,62435.0,2.32112648]
[1724766939639,0.57757197,62436.0,62435.0,2.14418838]
[1724766939871,0.57757197,62436.0,62435.0,2.36905561]
[1724766940083,0.57757197,62436.0,62435.0,2.38305561]
[1724766940525,0.31866266,62436.0,62435.0,2.55175561]
[1724766940739,0.000823,62443.0,62435.0,2.89930596]
[1724766940959,0.000823,62443.0,62442.0,1.121039]
[1724766941202,0.565723,62443.0,62442.0,2.09236418]
[1724766941414,0.565723,62443.0,62442.0,1.9812231]
[1724766941631,0.565723,62443.0,62442.0,2.09267312]
[1724766942291,0.565723,62443.0,62442.0,2.07765749]
[1724766942546,0.565723,62443.0,62442.0,2.17822371]
[1724766942755,0.565723,62443.0,62442.0,2.1206582]
[1724766943385,0.565723,62443.0,62442.0,2.1066582]
[1724766943597,0.565723,62443.0,62442.0,2.1206582]
[1724766943829,0.565723,62443.0,62442.0,2.4409552]
[1724766944064,0.565723,62443.0,62442.0,2.1206582]
[1724766944270,0.565723,62443.0,62442.0,2.21610218]
[1724766944481,0.565723,62443.0,62442.0,2.1066582]
[1724766944686,0.565723,62443.0,62442.0,2.4409552]
[1724766944900,0.565723,62443.0,62442.0,2.1186181]
[1724766945114,0.565723,62443.0,62442.0,2.1507081]
[1724766945555,0.565723,62443.0,62442.0,2.24615572]
[1724766945770,0.565723,62443.0,62442.0,2.23115501]
[1724766945987,2.7538402,62442.0,62441.0,0.320298]
[1724766946209,2.7538402,62442.0,62441.0,1.664764]
[1724766946449,2.7538402,62442.0,62441.0,1.850945]
[1724766946668,2.7538402,62442.0,62441.0,1.92253119]
[1724766946916,2.7538402,62442.0,62441.0,1.17097919]
[1724766947127,2.7538402,62442.0,62440.0,0.04773766]
[1724766947340,0.3927,62441.0,62436.0,0.04773766]
[1724766947552,0.5801,62440.0,62435.0,0.0009053]
[1724766948244,0.5801,62440.0,62435.0,0.01725587]
[1724766948457,0.5801,62440.0,62435.0,0.0009053]
[1724766949101,0.5821,62440.0,62435.0,0.0269053]
[1724766949316,0.5811,62440.0,62435.0,0.0139053]
[1724766949544,0.5801,62440.0,62435.0,0.0009053]
[1724766949759,0.5811,62440.0,62435.0,0.0029053]
[1724766949979,0.5821,62440.0,62435.0,0.0029053]
[1724766952889,0.5821,62440.0,62435.0,0.01909743]
[1724766953320,0.190223,62440.0,62435.0,0.01909743]
[1724766953528,0.413,62439.0,62435.0,0.01909743]
[1724766954386,0.413,62439.0,62435.0,0.01809743]
[1724766954596,0.413,62439.0,62435.0,0.01709743]
[1724766954800,0.413,62439.0,62435.0,0.03009743]
[1724766955006,0.413,62439.0,62435.0,0.04309743]
[1724766955227,0.413,62439.0,62435.0,0.01709743]
[1724766955665,0.414,62439.0,62435.0,0.03009743]
[1724766956086,0.415,62439.0,62435.0,0.04309743]
[1724766957626,1.68225669,62442.0,62441.0,0.43540032]
[1724766957836,0.53164602,62442.0,62441.0,1.01566777]
[1724766958094,0.53164602,62442.0,62441.0,1.60463204]
[1724766959396,0.53364602,62442.0,62441.0,1.63063204]
[1724766959619,0.53364602,62442.0,62441.0,1.61286104]
[1724766959818,0.53364602,62442.0,62441.0,1.62586104]
[1724766960028,0.53464602,62442.0,62441.0,1.44404977]
[1724766960232,0.53464602,62442.0,62441.0,1.45906079]
[1724766960442,0.53464602,62442.0,62441.0,1.41867879]
[1724766961100,0.53364602,62442.0,62441.0,1.40567879]
[1724766961321,0.53364602,62442.0,62441.0,1.28938279]
[1724766961548,0.53364602,62442.0,62441.0,1.38564279]
[1724766961780,0.53364602,62442.0,62441.0,1.28938279]
[1724766962231,0.53364602,62442.0,62441.0,1.34613867]
[1724766962443,0.53364602,62442.0,62441.0,1.30246634]
[1724766962653,0.53364602,62442.0,62441.0,1.47215634]
[1724766963355,0.53364602,62442.0,62441.0,1.72069144]
[1724766963580,0.51391722,62442.0,62441.0,1.72069144]
[1724766963801,0.51391722,62442.0,62441.0,0.75997099]
[1724766964045,0.51391722,62442.0,62441.0,0.59028099]
[1724766964256,0.90791722,62442.0,62441.0,0.59028099]
[1724766964490,1.08991722,62442.0,62441.0,0.43026146]
[1724766964714,1.08991722,62442.0,62441.0,0.15501214]
[1724766965179,1.08991722,62442.0,62441.0,0.10290157]
[1724766965398,1.08991722,62442.0,62441.0,0.20290157]
[1724766965651,1.08991722,62442.0,62441.0,0.05501993]
[1724766965652,1.09074022,62442.0,62441.0,0.05501993]
[1724766965903,1.09074022,62442.0,62441.0,0.04101993]
[1724766966126,1.25070567,62442.0,62441.0,0.04101993]
[1724766966336,1.24870567,62442.0,62441.0,0.0440441]
[1724766966548,1.24870567,62442.0,62441.0,0.02902417]
[1724766966765,1.24870567,62442.0,62441.0,0.014]
[1724766966961,1.24870567,62442.0,62441.0,0.028]
[1724766967453,1.08874022,62442.0,62441.0,0.028]
[1724766967670,1.08874022,62442.0,62441.0,0.014]
[1724766967879,1.08874022,62442.0,62441.0,0.028]
[1724766968320,1.08874022,62442.0,62435.0,0.01709743]
[1724766968321,0.19552404,62441.0,62435.0,0.01709743]
[1724766968571,0.388,62438.0,62435.0,0.01709743]
[1724766968799,0.1936,62436.0,62435.0,0.01709743]
[1724766969016,0.74557001,62436.0,62435.0,0.01709743]
[1724766969458,0.74557001,62436.0,62435.0,0.0009053]
[1724766969688,0.1936,62433.0,62417.0,0.04791693]
[1724766969943,0.388,62430.0,62416.0,0.04791693]
[1724766970179,1.07764022,62442.0,62420.0,0.064173]
[1724766970180,0.388,62428.0,62420.0,0.064173]
[1724766970397,0.388,62428.0,62426.0,0.27524932]
[1724766971066,0.388,62428.0,62427.0,0.1]
[1724766972406,0.389,62428.0,62427.0,0.1]
[1724766972625,0.389,62428.0,62427.0,0.114]
[1724766973362,0.389,62428.0,62427.0,0.12992554]
[1724766973800,0.388,62428.0,62427.0,0.12992554]
[1724766974233,0.389,62428.0,62427.0,0.14292554]
[1724766977154,0.388,62428.0,62427.0,0.12992554]
[1724766977393,0.388,62428.0,62427.0,0.14483084]
[1724766977848,0.388,62428.0,62427.0,0.13083084]
[1724766978559,0.388,62428.0,62427.0,0.14483084]
[1724766979738,0.73706545,62428.0,62427.0,0.04483084]
[1724766982762,0.73706545,62428.0,62413.0,0.0009053]
[1724766982763,0.40062404,62426.0,62413.0,0.0009053]
[1724766983024,0.5789,62424.0,62413.0,0.0650883]
[1724766983236,0.00192404,62426.0,62413.0,0.0009053]
[1724766983237,0.54387103,62423.0,62413.0,0.0009053]
[1724766983514,0.1895,62420.0,62413.0,0.01716782]
[1724766983740,0.5649,62428.0,62413.0,0.01716782]
[1724766983741,0.5694,62414.0,62413.0,0.0009053]
[1724766984003,0.72936545,62414.0,62413.0,0.0009053]
[1724766984684,0.72936545,62414.0,62413.0,0.0069053]
[1724766985151,0.72936545,62414.0,62413.0,0.0119053]
[1724766985401,0.72936545,62414.0,62413.0,0.0059053]
[1724766985610,0.72936545,62414.0,62413.0,0.0009053]
[1724766985839,0.72936545,62414.0,62413.0,0.0119053]
[1724766985840,0.73036545,62414.0,62413.0,0.0119053]
[1724766986793,0.73036545,62414.0,62413.0,0.0169053]
[1724766987234,0.73036545,62414.0,62413.0,0.0119053]
[1724766987456,0.73036545,62414.0,62413.0,0.0239053]
[1724766987670,0.73136545,62414.0,62413.0,0.0239053]
[1724766988828,0.5714,62414.0,62413.0,0.0239053]
[1724766989269,0.3819,62414.0,62413.0,0.0239053]
[1724766990193,0.3819,62414.0,62413.0,0.0119053]
[1724766990450,0.3809,62414.0,62413.0,0.0119053]
[1724766990694,0.3819,62414.0,62413.0,0.0119053]
[1724766991127,0.3809,62414.0,62413.0,0.0119053]
[1724766991337,0.3799,62414.0,62413.0,0.0009053]
[1724766991555,0.3809,62414.0,62413.0,0.0009053]
[1724766991770,0.3809,62414.0,62413.0,0.0109053]
[1724766991990,0.3799,62414.0,62413.0,0.0009053]
[1724766992206,0.3799,62414.0,62413.0,0.0149053]
[1724766992907,0.3799,62414.0,62413.0,0.0259053]
[1724766992908,0.3809,62414.0,62413.0,0.0259053]
[1724766993132,0.54086545,62414.0,62413.0,0.0259053]
[1724766993357,0.72236545,62414.0,62413.0,0.0259053]
[1724766994242,0.72136545,62414.0,62413.0,0.0149053]
[1724766994888,0.72136545,62414.0,62413.0,0.0289053]
[1724767002353,0.72136545,62414.0,62413.0,0.0149053]
[1724767002563,0.72136545,62414.0,62413.0,0.0029053]
[1724767002783,5.0070197,62413.0,62412.0,0.01667428]
[1724767003003,5.16698515,62413.0,62412.0,0.01667428]
[1724767003426,5.73188515,62413.0,62412.0,0.01667428]
[1724767005213,5.73188515,62413.0,62412.0,0.01967428]
[1724767005479,5.73188515,62413.0,62412.0,0.02267428]
[1724767007811,5.91828515,62413.0,62412.0,0.02267428]
[1724767008460,5.91828515,62413.0,62412.0,0.0069053]
[1724767008942,0.00192404,62407.0,62406.0,0.000822]
[1724767009162,1.32869642,62407.0,62406.0,0.000822]
[1724767009641,1.35169642,62407.0,62406.0,0.000822]
[1724767011697,1.35169642,62407.0,62406.0,0.002822]
[1724767011931,1.35169642,62407.0,62406.0,0.000822]
[1724767012147,1.35469642,62407.0,62406.0,0.000822]
[1724767012369,1.32977238,62407.0,62406.0,0.000822]
[1724767013415,1.33277238,62407.0,62406.0,0.000822]
[1724767014485,1.32977238,62407.0,62406.0,0.000822]
[1724767015334,1.32977238,62407.0,62406.0,0.007822]
[1724767015335,1.32777238,62407.0,62406.0,0.007822]
[1724767015539,1.32777238,62407.0,62406.0,0.008822]
[1724767015780,1.32969642,62407.0,62406.0,0.008822]
[1724767015995,1.35269642,62407.0,62406.0,0.007822]
[1724767016212,1.48065913,62407.0,62406.0,0.000822]
[1724767016424,1.48265913,62407.0,62406.0,0.014822]
[1724767016627,1.75790845,62407.0,62406.0,0.014822]
[1724767016838,1.75690845,62407.0,62406.0,0.007822]
[1724767017281,1.75790845,62407.0,62406.0,0.014822]
[1724767018343,1.75690845,62407.0,62406.0,0.007822]
[1724767019036,1.62893881,62407.0,62406.0,0.000822]
[1724767019244,1.63393881,62407.0,62406.0,0.000822]
[1724767019685,1.35868949,62407.0,62406.0,0.000822]
[1724767020340,0.58552404,62404.0,62403.0,0.0004]
[1724767020552,1.33338949,62404.0,62403.0,0.0004]
[1724767022459,1.33538949,62404.0,62403.0,0.0004]
[1724767022665,1.33738949,62404.0,62403.0,0.0004]
[1724767023910,1.31438949,62404.0,62403.0,0.0004]
[1724767025014,1.46882844,62404.0,62403.0,0.0004]
[1724767026055,1.46682844,62404.0,62403.0,0.0004]
[1724767026275,1.46482844,62404.0,62403.0,0.0004]
[1724767026537,1.48282844,62404.0,62403.0,0.0024]
[1724767026934,1.48282844,62404.0,62403.0,0.0004]
[1724767026935,1.46482844,62404.0,62403.0,0.0004]
[1724767027154,1.47282844,62404.0,62403.0,0.0014]
[1724767027588,1.46482844,62404.0,62403.0,0.0004]
[1724767027971,1.62507444,62404.0,62403.0,0.0004]
[1724767028385,1.63307444,62404.0,62403.0,0.002223]
[1724767028969,0.16218004,62400.0,62399.0,0.000822]
[1724767029194,1.78659481,62400.0,62399.0,0.000822]
[1724767029494,0.60322404,62391.0,62376.0,0.009042]
[1724767029701,1.08408504,62388.0,62387.0,0.00079996]
[1724767029970,2.13052449,62388.0,62387.0,0.00079996]
[1724767030181,0.87847336,62377.0,62376.0,0.009042]
[1724767030424,1.06143881,62377.0,62376.0,0.009042]
[1724767030637,1.90882849,62377.0,62376.0,0.009042]
[1724767030859,1.74851349,62377.0,62376.0,0.009042]
[1724767031075,1.78665381,62377.0,62376.0,0.009042]
[1724767031332,0.4868875,62376.0,62364.0,0.02408437]
[1724767031537,0.84227336,62365.0,62364.0,0.02408437]
[1724767031751,1.02523881,62365.0,62364.0,0.02408437]
[1724767031987,0.74998949,62365.0,62364.0,0.02408437]
[1724767032215,0.74898949,62365.0,62364.0,0.02408437]
[1724767032450,1.28996545,62365.0,62364.0,0.02288837]
[1724767032665,1.28996545,62365.0,62355.0,0.0458]
[1724767032666,1.10906545,62365.0,62355.0,0.0458]
[1724767032881,0.16397486,62364.0,62355.0,0.0458]
[1724767033102,0.1658989,62364.0,62353.0,0.01578964]
[1724767033326,0.00192404,62359.0,62349.0,0.009053]
[1724767033558,0.00192404,62356.0,62349.0,0.009053]
[1724767033803,0.16397559,62355.0,62350.0,0.01632188]
[1724767034017,0.72887559,62355.0,62350.0,0.01632188]
[1724767034484,0.72887559,62355.0,62349.0,0.009053]
[1724767035339,0.72887559,62355.0,62349.0,0.02535573]
[1724767035544,0.72887559,62355.0,62349.0,0.009053]
[1724767035954,0.73087559,62355.0,62349.0,0.023053]
[1724767036162,0.73087559,62355.0,62350.0,0.0458]
[1724767036396,0.72987559,62355.0,62350.0,0.0458]
[1724767036812,0.73087559,62355.0,62350.0,0.0458]
[1724767037049,0.72987559,62355.0,62350.0,0.0458]
[1724767037259,0.72686545,62355.0,62350.0,0.0458]
[1724767038156,0.00400968,62354.0,62350.0,0.0458]
[1724767038379,0.15996545,62353.0,62350.0,0.0458]
[1724767038614,0.15996545,62353.0,62350.0,0.0518]
[1724767038825,0.00400969,62352.0,62350.0,0.0518]
[1724767039054,0.16397514,62353.0,62350.0,0.0518]
[1724767039317,0.16397514,62353.0,62350.0,0.0458]
[1724767039532,0.16397514,62353.0,62350.0,0.0658]
[1724767039750,0.16397514,62353.0,62350.0,0.0598]
[1724767039958,0.16397514,62353.0,62350.0,0.0458]
[1724767040162,0.001,62352.0,62350.0,0.0598]
[1724767040374,0.16397514,62353.0,62350.0,0.0458]
[1724767041825,0.16397514,62353.0,62350.0,0.0448]
[1724767041826,0.15996545,62353.0,62350.0,0.0448]
[1724767042060,0.5649,62354.0,62350.0,0.0588]
[1724767042519,0.72486545,62363.0,62350.0,0.0728]
[1724767042743,0.00400947,62362.0,62351.0,0.1178]
[1724767042961,0.5649,62358.0,62352.0,0.1]
[1724767043184,0.54787492,62357.0,62352.0,0.1]
[1724767043428,0.00192404,62356.0,62352.0,0.1]
[1724767043669,0.16397539,62355.0,62352.0,0.1]
[1724767043914,0.72887539,62355.0,62352.0,0.1]
[1724767044152,0.72887539,62355.0,62350.0,0.028]
[1724767044432,0.72486545,62355.0,62350.0,0.028]
[1724767044635,0.72486545,62355.0,62350.0,0.014]
[1724767044871,0.72486545,62355.0,62351.0,0.1626]
[1724767045093,0.72486545,62355.0,62352.0,0.1]
[1724767045308,0.72486545,62355.0,62352.0,0.111]
[1724767045765,0.5649,62355.0,62352.0,0.1]
[1724767046006,0.5649,62355.0,62352.0,0.112]
[1724767046007,0.5659,62355.0,62352.0,0.112]
[1724767046428,0.5649,62355.0,62352.0,0.1]
[1724767046965,0.5649,62355.0,62352.0,0.128]
[1724767046966,0.0040094,62354.0,62352.0,0.128]
[1724767047424,0.0040094,62354.0,62352.0,0.028]
[1724767047655,0.0040094,62354.0,62352.0,0.014]
[1724767048317,0.0040094,62354.0,62349.0,0.06992443]
[1724767048538,0.0040094,62354.0,62352.0,0.028]
[1724767049186,0.0040094,62354.0,62352.0,0.014]
[1724767049404,0.0040094,62354.0,62352.0,0.028]
[1724767049603,0.5659,62355.0,62352.0,0.028]
[1724767050118,0.5659,62355.0,62353.0,0.0448]
[1724767050351,0.5649,62354.0,62353.0,0.0448]
[1724767051716,0.5649,62354.0,62353.0,0.1626]
[1724767051973,0.5649,62354.0,62353.0,0.2766]
[1724767052628,0.5649,62354.0,62353.0,0.2906]
[1724767053115,0.5649,62354.0,62353.0,0.2766]
[1724767053785,0.5649,62354.0,62353.0,0.2626]
[1724767054004,0.0009064,62355.0,62353.0,0.2766]
[1724767054213,0.0009064,62355.0,62354.0,0.1]
[1724767054407,0.0009064,62355.0,62354.0,0.1448]
[1724767055766,0.0009064,62355.0,62354.0,0.1588]
[1724767056459,0.0009064,62355.0,62354.0,0.18288907]
[1724767056679,0.0009064,62355.0,62354.0,0.114]
[1724767057347,0.0009064,62355.0,62354.0,0.15208927]
[1724767058251,0.0009064,62355.0,62354.0,0.028]
[1724767059413,0.4043064,62355.0,62354.0,0.028]
[1724767059847,0.9692064,62355.0,62354.0,0.028]
[1724767060102,1.32587185,62355.0,62354.0,0.028]
[1724767061296,1.32587185,62355.0,62349.0,0.02512443]
[1724767061515,0.16397537,62354.0,62349.0,0.02512443]
[1724767063564,0.16397536,62354.0,62349.0,0.02512443]
[1724767064008,0.16397536,62354.0,62349.0,0.03912443]
[1724767064229,0.00400991,62354.0,62349.0,0.03912443]
[1724767064447,0.00400991,62354.0,62350.0,0.02409278]
[1724767064663,0.00400991,62354.0,62351.0,0.02409278]
[1724767064947,0.00400991,62354.0,62352.0,0.02409278]
[1724767065205,0.00491631,62354.0,62350.0,0.12409278]
[1724767065420,0.00491631,62354.0,62349.0,0.05312443]
[1724767065421,0.1999,62352.0,62349.0,0.05312443]
[1724767065662,0.16397549,62351.0,62349.0,0.05312443]
[1724767065900,0.405,62350.0,62349.0,0.03912443]
[1724767066118,0.56496545,62350.0,62349.0,0.02512443]
[1724767066584,0.75446545,62350.0,62349.0,0.009053]
[1724767067036,0.37722404,62344.0,62343.0,0.00823]
[1724767067302,0.72668949,62344.0,62343.0,0.00823]
[1724767067766,0.74968949,62344.0,62343.0,0.00823]
[1724767068238,0.19982404,62339.0,62338.0,0.0043918]
[1724767068458,0.78720129,62339.0,62338.0,0.0043918]
[1724767068946,0.76420129,62339.0,62338.0,0.0043918]
[1724767069607,0.76227725,62339.0,62338.0,0.0043918]
[1724767070113,0.76620129,62339.0,62338.0,0.0043918]
[1724767070367,0.76920129,62339.0,62338.0,0.0043918]
[1724767071020,0.76620129,62339.0,62338.0,0.0043918]
[1724767071272,0.76720129,62339.0,62338.0,0.0043918]
[1724767071493,0.76627725,62339.0,62338.0,0.0043918]
[1724767071986,0.76627725,62339.0,62331.0,0.01613785]
[1724767071987,0.5424552,62338.0,62331.0,0.01613785]
[1724767072202,0.16397652,62337.0,62331.0,0.01613785]
[1724767073620,0.16397652,62337.0,62331.0,0.02813785]
[1724767074329,0.69802065,62337.0,62331.0,0.02813785]
[1724767074553,0.5380552,62337.0,62331.0,0.04113785]
[1724767075059,0.16397612,62336.0,62331.0,0.04113785]
[1724767075563,0.16397612,62336.0,62331.0,0.02913785]
[1724767075774,0.16397612,62336.0,62331.0,0.04213785]
[1724767076217,0.16397612,62336.0,62331.0,0.02913785]
[1724767076443,0.16397612,62336.0,62331.0,0.01613785]
[1724767076657,0.16397612,62336.0,62331.0,0.03013785]
[1724767076867,0.16397612,62336.0,62331.0,0.04496185]
[1724767077118,0.00192404,62334.0,62331.0,0.04496185]
[1724767077351,0.56797689,62333.0,62331.0,0.029224]
[1724767078281,0.56797689,62333.0,62331.0,0.015224]
[1724767078501,0.5380552,62336.0,62331.0,0.001224]
[1724767078751,0.4726,62365.0,62331.0,0.054224]
[1724767078752,0.5380552,62333.0,62331.0,0.054224]
[1724767078978,0.5380552,62333.0,62332.0,0.39304932]
[1724767079218,0.5380552,62333.0,62332.0,0.49304932]
[1724767080342,0.45245765,62333.0,62332.0,1.02734232]
[1724767080579,0.45245765,62333.0,62332.0,1.51995972]
[1724767080811,0.45245765,62333.0,62332.0,1.45806132]
[1724767081053,0.45245765,62333.0,62332.0,1.01668132]
[1724767081271,0.45245765,62333.0,62332.0,1.03068132]
[1724767081547,0.45245765,62333.0,62332.0,0.92749132]
[1724767081781,0.45245765,62333.0,62332.0,0.91349132]
[1724767081991,0.45245765,62333.0,62332.0,0.89949132]
[1724767082213,0.45245765,62333.0,62332.0,0.91349132]
[1724767082430,0.45245765,62333.0,62332.0,0.56004932]
[1724767083098,0.45245765,62333.0,62332.0,0.114]
[1724767083320,0.9236231,62333.0,62332.0,0.028]
[1724767084032,0.9236231,62333.0,62332.0,0.014]
[1724767084715,0.9236231,62333.0,62332.0,0.028]
[1724767084942,0.9236231,62333.0,62331.0,0.001224]
[1724767085170,0.16397679,62332.0,62331.0,0.001224]
[1724767086099,0.16397679,62332.0,62331.0,0.011224]
[1724767086315,10.76939579,62332.0,62331.0,0.011224]
[1724767086761,0.36563365,62331.0,62330.0,0.02027427]
[1724767086981,0.5255991,62331.0,62330.0,0.02027427]
[1724767087201,0.5255991,62331.0,62321.0,0.015615]
[1724767087434,0.36844485,62330.0,62322.0,0.01959096]
[1724767087657,0.36844485,62330.0,62323.0,0.053]
[1724767087970,0.36443365,62330.0,62323.0,0.053]
[1724767089556,0.36443365,62330.0,62325.0,0.34524041]
[1724767089791,0.36443365,62330.0,62326.0,1.010876]
[1724767090038,0.36443365,62330.0,62326.0,0.1]
[1724767090289,0.36443365,62330.0,62327.0,0.04789483]
[1724767090966,0.36443365,62330.0,62328.0,0.053]
[1724767091190,0.36443365,62330.0,62328.0,0.153]
[1724767092120,0.36443365,62330.0,62329.0,0.1178]
[1724767092328,0.36443365,62330.0,62329.0,0.2178]
[1724767092537,0.35640311,62330.0,62329.0,0.42563484]
[1724767093217,0.35640311,62330.0,62329.0,0.74651184]
[1724767093426,0.35640311,62330.0,62329.0,1.43945684]
[1724767093640,0.35640311,62330.0,62329.0,1.23298428]
[1724767093848,0.35640311,62330.0,62329.0,1.19911489]
[1724767094058,0.29010311,62330.0,62329.0,1.08471045]
[1724767094266,0.29010311,62330.0,62329.0,1.13690447]
[1724767094749,0.29010311,62330.0,62329.0,1.12290447]
[1724767095417,0.29010311,62330.0,62329.0,1.13690447]
[1724767095626,0.21570311,62330.0,62329.0,1.13690447]
[1724767095909,10.36018605,62332.0,62331.0,0.802167]
[1724767096128,10.36018605,62332.0,62331.0,1.34169014]
[1724767096129,10.30896325,62332.0,62331.0,1.34169014]
[1724767096359,10.30896325,62332.0,62331.0,0.35655769]
[1724767096570,10.30896325,62332.0,62331.0,0.59599041]
[1724767096791,10.30896325,62332.0,62331.0,0.481062]
[1724767097059,10.28750325,62332.0,62331.0,0.96189445]
[1724767097290,10.28750325,62332.0,62331.0,1.58209938]
[1724767097509,10.28750325,62332.0,62331.0,1.63585799]
[1724767097711,10.28750325,62332.0,62331.0,1.53547247]
[1724767098379,10.20386325,62332.0,62331.0,1.53547247]
[1724767099227,10.20386325,62332.0,62331.0,1.49571336]
[1724767099434,10.20386325,62332.0,62331.0,1.50971336]
[1724767099680,10.20386325,62332.0,62331.0,1.54947247]
[1724767099925,10.20386325,62332.0,62331.0,1.59147334]
[1724767100146,10.20386325,62332.0,62331.0,1.63123245]
[1724767100377,10.20386325,62332.0,62331.0,1.54947247]
[1724767100599,10.20386325,62332.0,62331.0,1.57247247]
[1724767100823,10.20386325,62332.0,62331.0,1.69214595]
[1724767101090,10.17494826,62332.0,62331.0,1.95396579]
[1724767101314,10.17494826,62332.0,62331.0,1.9937249]
[1724767101539,10.33011426,62332.0,62331.0,1.9937249]
[1724767101757,10.27453526,62332.0,62331.0,2.0908089]
[1724767101972,10.24652926,62332.0,62331.0,2.08977717]
[1724767103475,10.24652926,62332.0,62331.0,1.92214817]
[1724767103693,10.24652926,62332.0,62331.0,4.31122917]
[1724767104307,10.23872526,62332.0,62331.0,4.31122917]
[1724767104976,10.23872526,62332.0,62331.0,1.60050456]
[1724767105187,10.23872526,62332.0,62331.0,1.53697463]
[1724767106062,10.23872526,62332.0,62331.0,1.65674756]
[1724767106267,10.23872526,62332.0,62331.0,0.58046318]
[1724767106432,10.23872526,62332.0,62331.0,0.74089618]
[1724767106638,10.23872526,62332.0,62331.0,0.83673387]
[1724767107044,10.23872526,62332.0,62331.0,0.67630087]
[1724767107632,10.13820527,62332.0,62331.0,1.31756632]
[1724767107833,10.13820527,62332.0,62331.0,1.22172863]
[1724767108174,10.13820527,62332.0,62331.0,1.91890775]
[1724767108384,10.13820527,62332.0,62331.0,1.8185193]
[1724767108608,10.13820527,62332.0,62331.0,1.91890542]
[1724767108609,10.10420527,62332.0,62331.0,1.91890542]
[1724767110015,9.84140773,62332.0,62331.0,1.8185193]
[1724767110438,9.62394773,62332.0,62331.0,2.23976699]
[1724767110650,8.70359455,62332.0,62331.0,2.1623863]
[1724767110868,8.68874755,62332.0,62331.0,2.1623863]
[1724767111704,8.68874755,62332.0,62331.0,1.59347745]
[1724767111912,8.68874755,62332.0,62331.0,1.4976523]
[1724767112559,8.68874755,62332.0,62331.0,1.0891893]
[1724767112776,8.68874755,62332.0,62331.0,0.45206718]
[1724767112991,9.27714755,62332.0,62331.0,0.128824]
[1724767113213,9.27714755,62332.0,62331.0,0.028824]
[1724767113424,9.27805395,62332.0,62331.0,0.028824]
[1724767114321,9.27805395,62332.0,62331.0,0.014824]
[1724767114979,9.27805395,62332.0,62331.0,0.000824]
[1724767115205,9.27805395,62332.0,62331.0,0.014824]
[1724767115435,9.27805395,62332.0,62331.0,0.028824]
[1724767115660,9.27805395,62332.0,62331.0,0.000824]
[1724767116093,9.27805395,62332.0,62331.0,0.014824]
[1724767116760,9.27805395,62332.0,62331.0,0.028824]
[1724767116972,9.08185395,62332.0,62331.0,0.028824]
[1724767117420,9.08185395,62332.0,62331.0,0.014824]
[1724767117662,9.07716268,62332.0,62331.0,0.014824]
[1724767117870,9.07716268,62332.0,62331.0,0.018824]
[1724767118302,9.07716268,62332.0,62331.0,0.014]
[1724767118520,8.67196024,62332.0,62331.0,0.174433]
[1724767118756,8.67196024,62332.0,62331.0,0.128]
[1724767118757,8.66599332,62332.0,62331.0,0.128]
[1724767118998,8.66599332,62332.0,62331.0,0.61038451]
[1724767119210,8.66599332,62332.0,62331.0,0.93466951]
[1724767119420,8.49139332,62332.0,62331.0,0.74606951]
[1724767119631,8.49139332,62332.0,62331.0,0.76006951]
[1724767119844,8.49139332,62332.0,62331.0,1.08093651]
[1724767120075,8.49139332,62332.0,62331.0,0.76006951]
[1724767120525,8.49139332,62332.0,62331.0,1.03599318]
[1724767121162,8.49139332,62332.0,62331.0,0.95930418]
[1724767121381,8.49139332,62332.0,62331.0,0.97330418]
[1724767121620,8.45439332,62332.0,62331.0,1.1451729]
[1724767122474,8.84669332,62332.0,62331.0,0.128]
[1724767122679,8.84669332,62332.0,62331.0,0.028]
[1724767124221,8.45439332,62332.0,62331.0,0.028]
[1724767124433,8.45439332,62332.0,62331.0,0.19986872]
[1724767124646,8.45439332,62332.0,62331.0,0.60476369]
[1724767124856,8.38295109,62332.0,62331.0,1.98759769]
[1724767125065,8.36527902,62332.0,62331.0,1.98529969]
[1724767125295,8.36527902,62332.0,62331.0,1.9845627]
[1724767125505,8.36527902,62332.0,62331.0,1.2592257]
[1724767125726,8.36527902,62332.0,62331.0,1.1393837]
[1724767125962,8.34853902,62332.0,62331.0,1.4602507]
[1724767126180,8.34853902,62332.0,62331.0,1.1393837]
[1724767126397,8.34853902,62332.0,62331.0,1.25934271]
[1724767126612,8.34853902,62332.0,62331.0,1.68060647]
[1724767126875,8.34853902,62332.0,62331.0,1.35973947]
[1724767127088,8.03859724,62332.0,62331.0,2.05888315]
[1724767127295,7.96817724,62332.0,62331.0,2.15927382]
[1724767128161,7.96817724,62332.0,62331.0,1.72060682]
[1724767128373,7.96817724,62332.0,62331.0,1.65534182]
[1724767128586,7.94117724,62332.0,62331.0,1.65534182]
[1724767129028,8.33227724,62332.0,62331.0,0.42490191]
[1724767129251,8.33227724,62332.0,62331.0,0.32892603]
[1724767129474,8.52117724,62332.0,62331.0,0.40197184]
[1724767129696,8.31896796,62332.0,62331.0,0.82922526]
[1724767129925,8.31896796,62332.0,62331.0,0.89940474]
[1724767130149,8.31896796,62332.0,62331.0,0.99538106]
[1724767130382,7.83728796,62332.0,62331.0,1.43127018]
[1724767130624,7.8099656,62332.0,62331.0,1.91698735]
[1724767130833,7.5599656,62332.0,62331.0,1.81659386]
[1724767131093,7.5599656,62332.0,62331.0,2.2378525]
[1724767132033,7.5599656,62332.0,62331.0,1.42207458]
[1724767133366,7.5599656,62332.0,62331.0,1.42207574]
[1724767133808,7.5599656,62332.0,62331.0,0.47289098]